bitfinex-derivatives/quotes_SOLF0:USTF0_20260227
["timestamp","ask_amount","ask_price","bid_price","bid_amount"]
[1772171616975,3.49041234,87.547,87.503,10.2849]
[1772171617473,3.49041234,87.539,87.503,10.2849]
[1772171618573,3.49041234,87.539,87.504,3.69395353]
[1772171620474,3.49041234,87.539,87.49,3.33888334]
[1772171620475,3.49041234,87.539,87.496,3.53100538]
[1772171621968,3.49041234,87.539,87.499,3.53100538]
[1772171625278,3.49041234,87.539,87.503,3.53100538]
[1772171628086,3.50843943,87.529,87.477,243.92795023]
[1772171628587,3.34101759,87.52,87.477,243.92795023]
[1772171628784,3.50843943,87.519,87.477,243.92795023]
[1772171629595,3.50843943,87.519,87.471,3.53100538]
[1772171630484,8.56569209,87.532,87.481,3.53100538]
[1772171630686,6.84945702,87.53,87.481,3.53100538]
[1772171630884,3.50843943,87.529,87.481,3.53100538]
[1772171631893,3.50843943,87.529,87.486,3.53100538]
[1772171634094,3.50843943,87.525,87.486,3.53100538]
[1772171634693,279.01952709,87.534,87.477,10.288]
[1772171634694,3.50843943,87.519,87.477,10.288]
[1772171635291,3.50843943,87.519,87.473,3.53100538]
[1772171638496,3.50843943,87.519,87.475,3.53100538]
[1772171640803,3.50843943,87.519,87.478,3.53100538]
[1772171641394,3.50843943,87.519,87.481,3.53100538]
[1772171643099,3.50843943,87.531,87.491,3.53100538]
[1772171653814,3.50843943,87.531,87.463,3.7110701]
[1772171654110,3.61112546,87.509,87.463,3.7110701]
[1772171655015,3.61112546,87.509,87.465,10.2894]
[1772171657006,3.61112546,87.509,87.465,14.0004701]
[1772171657207,3.61112546,87.509,87.466,3.7110701]
[1772171663321,3.61112546,87.509,87.468,3.7110701]
[1772171669920,3.61112546,87.499,87.459,10.2901]
[1772171670524,3.61112546,87.499,87.459,14.0011701]
[1772171673525,3.61112546,87.499,87.46,3.7110701]
[1772171674120,3.61112546,87.509,87.464,3.7110701]
[1772171674924,3.61112546,87.509,87.466,3.7110701]
[1772171675325,3.61112546,87.499,87.451,3.7110701]
[1772171676926,3.61112546,87.499,87.458,3.7110701]
[1772171680824,3.61112546,87.499,87.46,3.62760276]
[1772171681026,7.06641579,87.51,87.461,3.62760276]
[1772171681433,3.7253982,87.509,87.462,3.62760276]
[1772171683031,3.7253982,87.509,87.467,13.91680276]
[1772171683228,3.7253982,87.509,87.468,3.62760276]
[1772171685827,3.7253982,87.509,87.47,13.91650276]
[1772171686026,3.7253982,87.509,87.458,3.62760276]
[1772171687330,3.7253982,87.499,87.458,3.62760276]
[1772171690231,3.7253982,87.519,87.471,3.62760276]
[1772171692035,3.7253982,87.519,87.474,3.62760276]
[1772171693131,3.7253982,87.519,87.476,3.62760276]
[1772171693332,3.7253982,87.533,87.481,3.62760276]
[1772171693636,3.7253982,87.531,87.481,3.62760276]
[1772171693836,12.29182853,87.53,87.483,3.62760276]
[1772171694025,3.7253982,87.53,87.483,3.62760276]
[1772171694230,12.29154676,87.529,87.483,3.62760276]
[1772171694432,3.7253982,87.528,87.483,3.62760276]
[1772171695934,3.7253982,87.509,87.461,3.62760276]
[1772171697838,3.7253982,87.509,87.473,3.62760276]
[1772171698533,3.7253982,87.525,87.475,3.62760276]
[1772171698833,3.7253982,87.523,87.475,3.62760276]
[1772171699137,12.29963881,87.522,87.475,3.62760276]
[1772171699332,3.7253982,87.522,87.48,3.34436467]
[1772171699532,3.7253982,87.522,87.481,3.62760276]
[1772171700743,3.7253982,87.519,87.471,3.62760276]
[1772171701339,3.7253982,87.509,87.454,3.62760276]
[1772171701636,3.7253982,87.509,87.459,10.2901]
[1772171701842,7.06976287,87.5,87.46,3.62760276]
[1772171702448,3.7253982,87.5,87.462,13.91740276]
[1772171703347,3.7253982,87.5,87.469,10.289]
[1772171703546,3.7253982,87.509,87.47,3.62760276]
[1772171704950,3.7253982,87.509,87.474,10.2884]
[1772171705750,3.7253982,87.509,87.47,3.62760276]
[1772171708644,7.06976287,87.52,87.472,3.62760276]
[1772171708848,3.7253982,87.52,87.472,3.62760276]
[1772171709949,3.7253982,87.52,87.482,3.72423646]
[1772171713258,7.06976287,87.52,87.482,3.72423646]
[1772171714359,3.79638451,87.519,87.482,3.72423646]
[1772171716056,3.79638451,87.509,87.473,10.2885]
[1772171716459,3.79638451,87.509,87.473,14.01273646]
[1772171717561,3.79638451,87.509,87.473,3.72423646]
[1772171717957,3.79638451,87.509,87.465,10.2895]
[1772171718458,3.79638451,87.509,87.465,14.01373646]
[1772171718763,3.79638451,87.509,87.466,3.72423646]
[1772171720364,3.79638451,87.509,87.469,3.72423646]
[1772171721058,3.34436467,87.51,87.449,21.26108813]
[1772171721059,10.2836,87.516,87.471,3.72423646]
[1772171721865,10.2836,87.516,87.472,10.2886]
[1772171722065,10.2836,87.516,87.473,3.72423646]
[1772171722368,3.79638451,87.519,87.473,3.72423646]
[1772171723870,3.79638451,87.519,87.475,3.72423646]
[1772171724769,3.79638451,87.519,87.478,3.72423646]
[1772171724972,7.14074918,87.53,87.48,3.34436467]
[1772171725269,3.79638451,87.53,87.481,3.72423646]
[1772171725969,3.79638451,87.53,87.488,14.01093646]
[1772171727271,3.79638451,87.53,87.48,3.34436467]
[1772171727272,3.79638451,87.529,87.491,10.2863]
[1772171728567,3.79638451,87.529,87.489,3.72423646]
[1772171728772,3.79638451,87.519,87.479,3.72423646]
[1772171729273,3.79638451,87.519,87.422,34.28]
[1772171729274,7.14074918,87.53,87.488,3.72423646]
[1772171729465,3.79638451,87.529,87.488,3.72423646]
[1772171731577,3.34436467,87.52,87.488,3.72423646]
[1772171732376,3.79638451,87.519,87.48,10.2877]
[1772171732776,3.79638451,87.519,87.478,3.72423646]
[1772171733679,3.34436467,87.52,87.478,3.72423646]
[1772171733879,10.2826,87.524,87.478,3.72423646]
[1772171734572,7.14074918,87.53,87.48,3.72423646]
[1772171735978,7.14074918,87.53,87.482,3.72423646]
[1772171736775,3.79638451,87.527,87.482,3.72423646]
[1772171738680,3.79638451,87.527,87.483,3.72423646]
[1772171739986,3.34436467,87.55,87.491,3.56575704]
[1772171740281,3.85101168,87.548,87.491,3.56575704]
[1772171740475,8.56070764,87.547,87.491,3.56575704]
[1772171740681,3.85101168,87.545,87.491,3.56575704]
[1772171740880,3.85101168,87.545,87.502,10.2851]
[1772171741385,3.85101168,87.539,87.502,10.2851]
[1772171743387,3.85101168,87.539,87.502,13.85085704]
[1772171746892,3.85101168,87.539,87.502,3.56575704]
[1772171749288,3.85101168,87.529,87.481,10.2875]
[1772171749490,3.85101168,87.529,87.482,3.56575704]
[1772171750995,3.85101168,87.529,87.484,3.56575704]
[1772171751896,3.85101168,87.529,87.485,13.85275704]
[1772171752590,3.85101168,87.529,87.486,3.56575704]
[1772171758605,3.85101168,87.529,87.488,10.2867]
[1772171759409,3.85101168,87.519,87.488,10.2867]
[1772171759608,3.85101168,87.519,87.48,10.2877]
[1772171759908,3.85101168,87.509,87.463,3.56575704]
[1772171760406,3.34105668,87.5,87.472,10.2886]
[1772171760912,3.85101168,87.509,87.472,10.2886]
[1772171761501,3.85101168,87.509,87.463,13.85535704]
[1772171761709,7.19206836,87.5,87.463,13.85535704]
[1772171763509,3.85101168,87.499,87.463,13.85535704]
[1772171765506,3.85101168,87.489,87.454,10.2907]
[1772171765705,3.85101168,87.479,87.439,3.56575704]
[1772171768416,3.34105668,87.47,87.439,3.56575704]
[1772171774418,3.85101168,87.479,87.439,3.56575704]
[1772171775925,3.85101168,87.479,87.449,10.2912]
[1772171776923,3.34105668,87.49,87.455,13.90537915]
[1772171777629,3.49884162,87.493,87.461,10.2898]
[1772171777824,3.49884162,87.493,87.461,13.90457915]
[1772171778226,3.34105668,87.5,87.44,3.34105668]
[1772171778227,3.34105668,87.5,87.464,10.2895]
[1772171778931,3.34105668,87.5,87.464,13.90427915]
[1772171779929,3.49884162,87.504,87.415,20.5905]
[1772171779930,3.49884162,87.504,87.471,3.61477915]
[1772171780133,3.34105668,87.51,87.471,3.61477915]
[1772171780932,3.34105668,87.51,87.473,10.2884]
[1772171781236,3.49884162,87.509,87.473,10.2884]
[1772171782632,3.49884162,87.509,87.471,3.61477915]
[1772171788133,3.49884162,87.506,87.451,10.2911]
[1772171788334,3.49884162,87.506,87.458,3.61477915]
[1772171789943,13.78364162,87.505,87.458,3.61477915]
[1772171790535,3.49884162,87.502,87.458,3.61477915]
[1772171792144,3.49884162,87.499,87.458,3.61477915]
[1772171792541,10.2866,87.49,87.458,3.61477915]
[1772171794742,3.49884162,87.499,87.458,3.61477915]
[1772171799748,3.49884162,87.499,87.461,3.6717092]
[1772171803447,3.49884162,87.499,87.444,3.848024]
[1772171804744,3.71121605,87.489,87.444,3.848024]
[1772171806848,13.99801605,87.489,87.444,3.848024]
[1772171807440,3.71121605,87.488,87.444,3.848024]
[1772171810847,3.71121605,87.488,87.448,3.848024]
[1772171812652,3.71121605,87.488,87.45,14.139224]
[1772171812847,3.71121605,87.488,87.451,3.848024]
[1772171813753,3.71121605,87.488,87.452,10.291]
[1772171814050,3.71121605,87.488,87.452,14.139024]
[1772171816753,3.71121605,87.488,87.459,10.2902]
[1772171819551,3.71121605,87.5,87.463,10.2896]
[1772171819756,3.71121605,87.499,87.464,3.848024]
[1772171820757,3.71121605,87.499,87.452,3.848024]
[1772171822052,3.71121605,87.499,87.459,10.2901]
[1772171822252,3.71121605,87.499,87.46,3.848024]
[1772171827762,3.71121605,87.519,87.462,3.848024]
[1772171828462,3.71121605,87.519,87.471,3.848024]
[1772171828851,3.71121605,87.519,87.475,3.848024]
[1772171829052,270.33613025,87.534,87.475,3.848024]
[1772171829053,3.71121605,87.509,87.475,3.848024]
[1772171829962,3.74157165,87.499,87.453,3.58955428]
[1772171830557,3.74157165,87.489,87.453,3.58955428]
[1772171831662,3.74157165,87.489,87.457,10.2903]
[1772171832362,3.74157165,87.489,87.453,3.58955428]
[1772171832662,3.74157165,87.489,87.433,3.58955428]
[1772171833863,3.74157165,87.489,87.434,3.58955428]
[1772171835062,7.08626526,87.48,87.434,3.58955428]
[1772171837864,7.08626526,87.48,87.432,21.26108813]
[1772171837865,7.08626526,87.48,87.438,3.58955428]
[1772171838662,3.74157165,87.48,87.438,3.58955428]
[1772171838862,3.74157165,87.48,87.441,3.58955428]
[1772171839865,3.74157165,87.48,87.443,13.88165428]
[1772171840062,3.74157165,87.48,87.444,3.58955428]
[1772171841663,7.08626526,87.48,87.444,3.58955428]
[1772171841859,3.74157165,87.479,87.444,3.58955428]
[1772171843469,3.74157165,87.459,87.426,21.26108813]
[1772171843657,3.74157165,87.459,87.417,3.58955428]
[1772171843856,3.74157165,87.449,87.417,3.58955428]
[1772171844466,3.74157165,87.449,87.419,10.2949]
[1772171846959,3.74157165,87.439,87.409,10.296]
[1772171848062,3.34469361,87.44,87.412,10.2956]
[1772171848260,3.74157165,87.449,87.412,13.88515428]
[1772171848467,3.74157165,87.449,87.412,3.58955428]
[1772171848877,3.34469361,87.44,87.412,3.58955428]
[1772171850072,3.74157165,87.449,87.412,3.58955428]
[1772171850370,3.74157165,87.449,87.399,3.58955428]
[1772171852663,3.74157165,87.449,87.373,21.26108813]
[1772171852664,3.74157165,87.449,87.401,3.58955428]
[1772171852862,3.74157165,87.46,87.411,3.58955428]
[1772171853166,3.34469361,87.47,87.427,10.2938]
[1772171853371,3.74157165,87.483,87.441,3.58955428]
[1772171853573,3.74157165,87.507,87.471,3.58955428]
[1772171856270,3.74157165,87.507,87.46,6.93424789]
[1772171856676,3.74157165,87.489,87.438,3.58955428]
[1772171856872,3.74157165,87.469,87.421,3.58955428]
[1772171857370,7.08626526,87.46,87.421,3.58955428]
[1772171857775,3.74157165,87.46,87.421,3.58955428]
[1772171859774,7.08626526,87.46,87.421,3.58955428]
[1772171859980,3.34469361,87.45,87.41,3.48932569]
[1772171864482,3.5671138,87.459,87.41,3.48932569]
[1772171864679,3.5671138,87.459,87.411,3.48932569]
[1772171864877,3.5671138,87.449,87.384,3.48932569]
[1772171865079,3.5671138,87.429,87.384,3.48932569]
[1772171865273,6.91180741,87.44,87.384,3.48932569]
[1772171865482,6.91180741,87.44,87.391,3.48932569]
[1772171867584,3.5671138,87.44,87.391,3.48932569]
[1772171867985,3.5671138,87.44,87.395,3.48932569]
[1772171868686,6.91180741,87.44,87.395,3.48932569]
[1772171868885,3.5671138,87.439,87.395,3.48932569]
[1772171872286,6.91593885,87.42,87.378,3.48932569]
[1772171873792,3.34882505,87.42,87.38,3.48932569]
[1772171873995,3.5671138,87.433,87.381,3.48932569]
[1772171874390,3.5671138,87.433,87.391,3.48932569]
[1772171874788,3.5671138,87.433,87.394,3.48932569]
[1772171875485,3.5671138,87.44,87.394,3.48932569]
[1772171876095,3.5671138,87.44,87.397,3.48932569]
[1772171876693,6.91593885,87.44,87.397,3.48932569]
[1772171876995,6.91593885,87.44,87.398,10.2973]
[1772171878994,6.91593885,87.44,87.398,13.78662569]
[1772171879197,3.34882505,87.45,87.404,3.48932569]
[1772171879495,6.91593885,87.45,87.404,3.48932569]
[1772171879693,3.5671138,87.449,87.404,3.48932569]
[1772171880696,6.91593885,87.41,87.357,3.48932569]
[1772171880896,6.91593885,87.41,87.361,3.48932569]
[1772171881399,3.5671138,87.41,87.361,3.48932569]
[1772171881898,5.14692619,87.468,87.322,48.97765864]
[1772171881899,3.5671138,87.428,87.371,3.48932569]
[1772171883702,3.5671138,87.428,87.39,6.83815074]
[1772171883899,3.5671138,87.428,87.288,34.3]
[1772171883900,3.5671138,87.399,87.288,34.3]
[1772171884098,3.5671138,87.399,87.34,3.34882505]
[1772171884698,10.2989,87.386,87.35,3.34882505]
[1772171885097,3.5671138,87.399,87.35,3.34882505]
[1772171885603,3.5671138,87.399,87.36,3.34882505]
[1772171887099,3.5671138,87.399,87.343,10.3038]
[1772171887304,3.5671138,87.399,87.36,3.34882505]
[1772171890505,3.5671138,87.399,87.351,10.3028]
[1772171890704,3.5671138,87.399,87.35,3.34882505]
[1772171892109,3.62622529,87.396,87.35,3.34882505]
[1772171893907,3.62622529,87.396,87.36,3.34882505]
[1772171894207,3.34882505,87.42,87.36,3.34882505]
[1772171894208,3.62622529,87.394,87.36,3.34882505]
[1772171894806,3.62622529,87.392,87.36,3.34882505]
[1772171895102,8.48447021,87.443,87.304,21.28519521]
[1772171895103,3.62622529,87.442,87.38,3.34882505]
[1772171895302,3.62622529,87.442,87.371,1.57089999]
[1772171895303,3.62622529,87.442,87.39,3.34882505]
[1772171895500,3.34882505,87.44,87.39,3.34882505]
[1772171895698,3.62622529,87.439,87.38,3.34882505]
[1772171896100,10.2933,87.433,87.39,3.34882505]
[1772171896415,10.2933,87.433,87.39,4.91972504]
[1772171898311,10.2933,87.433,87.391,1.58675911]
[1772171898607,10.2933,87.433,87.401,1.58675911]
[1772171902212,3.62622529,87.41,87.37,1.56721419]
[1772171902911,10.2951,87.418,87.371,1.55289055]
[1772171903314,10.2951,87.418,87.381,1.55289055]
[1772171903509,3.62622529,87.426,87.39,3.34882505]
[1772171904618,3.62622529,87.439,87.391,1.52440899]
[1772171905020,10.2942,87.425,87.391,1.52440899]
[1772171905916,10.2931,87.434,87.391,1.52440899]
[1772171907215,3.62622529,87.419,87.361,1.49124376]
[1772171908213,3.62622529,87.419,87.36,3.34882505]
[1772171908214,10.2951,87.417,87.363,1.49124376]
[1772171908606,10.2951,87.417,87.365,1.43497243]
[1772171908808,3.62622529,87.419,87.371,1.43497243]
[1772171909020,10.294,87.427,87.371,1.43497243]
[1772171909410,10.294,87.427,87.381,1.43497243]
[1772171910410,10.295,87.418,87.381,1.43497243]
[1772171910608,3.62622529,87.417,87.37,4.79908949]
[1772171910917,3.62622529,87.417,87.37,1.45026444]
[1772171911220,3.34882505,87.41,87.37,1.45026444]
[1772171911417,3.62622529,87.415,87.37,1.45026444]
[1772171912015,10.2961,87.409,87.37,1.45026444]
[1772171913216,10.2961,87.409,87.37,4.79908949]
[1772171914821,3.62622529,87.415,87.37,4.79908949]
[1772171915723,3.62622529,87.415,87.371,1.4527011]
[1772171923532,3.86184938,87.399,87.346,1.46044482]
[1772171924623,3.86184938,87.398,87.348,10.3032]
[1772171925032,3.86184938,87.398,87.348,11.7026853]
[1772171925930,14.15954938,87.396,87.349,1.3994853]
[1772171927031,3.86184938,87.392,87.349,1.3994853]
[1772171927832,3.34882505,87.4,87.351,1.41993737]
[1772171929038,3.86184938,87.399,87.356,10.3022]
[1772171929841,3.35126693,87.4,87.357,1.42850159]
[1772171930040,10.2968,87.403,87.357,1.42850159]
[1772171930243,3.86184938,87.409,87.361,1.42850159]
[1772171932040,3.86184938,87.406,87.361,1.42850159]
[1772171933540,3.35126693,87.4,87.361,1.42850159]
[1772171933840,3.86184938,87.399,87.361,1.42850159]
[1772171934537,3.86184938,87.399,87.351,10.3028]
[1772171934743,3.86184938,87.399,87.352,1.42211345]
[1772171936143,3.86184938,87.399,87.356,10.3023]
[1772171938548,3.86184938,87.399,87.352,1.42211345]
[1772171939746,3.86184938,87.399,87.354,10.3025]
[1772171940845,3.86184938,87.399,87.355,1.41704017]
[1772171941749,3.86184938,87.399,87.356,10.3022]
[1772171945745,3.86184938,87.399,87.357,1.48910972]
[1772171946251,3.86184938,87.399,87.36,10.3018]
[1772171946448,3.86184938,87.399,87.36,11.79079882]
[1772171946648,1.99150748,87.437,87.36,11.79079882]
[1772171946649,3.35126693,87.41,87.361,1.48899882]
[1772171946849,3.86184938,87.417,87.372,10.3004]
[1772171947043,3.86184938,87.399,87.356,1.48899882]
[1772171948045,3.86184938,87.399,87.36,1.48899882]
[1772171948457,3.86184938,87.379,87.35,21.28519521]
[1772171948655,3.86184938,87.379,87.327,28.36515864]
[1772171948656,7.21311631,87.37,87.327,21.28519521]
[1772171948850,7.21311631,87.37,87.325,1.49937126]
[1772171949652,3.86184938,87.37,87.325,1.49937126]
[1772171949852,3.86184938,87.37,87.329,10.3054]
[1772171950055,3.86184938,87.37,87.33,1.50684413]
[1772171950854,3.86184938,87.37,87.336,10.3046]
[1772171955561,3.67730767,87.382,87.343,10.3038]
[1772171955762,3.67730767,87.382,87.343,11.63598091]
[1772171957958,3.67730767,87.382,87.343,10.3038]
[1772171958265,3.67730767,87.374,87.329,1.33004711]
[1772171958967,3.67730767,87.374,87.33,10.3053]
[1772171961368,3.67730767,87.403,87.334,1.31679021]
[1772171961669,3.35126693,87.45,87.391,1.31679021]
[1772171961864,3.67730767,87.449,87.391,1.31679021]
[1772171962868,3.67730767,87.442,87.391,11.61489021]
[1772171963961,3.67730767,87.439,87.381,10.2993]
[1772171964866,3.67730767,87.439,87.39,3.35126693]
[1772171965862,3.67730767,87.439,87.391,10.2982]
[1772171966261,3.67730767,87.439,87.4,3.35126693]
[1772171966665,3.67730767,87.429,87.378,1.43865124]
[1772171967766,3.67730767,87.429,87.392,10.298]
[1772171968366,3.67730767,87.429,87.353,21.28519521]
[1772171968367,3.67730767,87.429,87.383,1.4306364]
[1772171969669,3.67730767,87.429,87.39,3.35126693]
[1772171970873,3.67730767,87.429,87.395,10.2977]
[1772171971777,3.67730767,87.442,87.406,10.2964]
[1772171973274,3.35126693,87.44,87.406,10.2964]
[1772171973470,3.67730767,87.439,87.406,10.2964]
[1772171974364,3.67730767,87.439,87.415,10.2953]
[1772171974567,3.67730767,87.439,87.358,20.604]
[1772171974568,7.67e-06,87.456,87.411,3.83444224]
[1772171975173,8.50192084,87.507,87.411,3.83444224]
[1772171975377,3.35126693,87.48,87.43,3.35126693]
[1772171975779,3.35126693,87.48,87.431,10.2935]
[1772171976175,3.35126693,87.48,87.431,14.12794224]
[1772171976576,3.67730767,87.479,87.431,3.83444224]
[1772171976780,3.67730767,87.479,87.42,3.35126693]
[1772171977077,3.67730767,87.479,87.421,3.83444224]
[1772171978070,3.67730767,87.479,87.43,3.35126693]
[1772171978272,3.67730767,87.479,87.44,3.35126693]
[1772171980573,3.35126693,87.5,87.45,3.35126693]
[1772171980773,3.86186174,87.499,87.45,3.35126693]
[1772171982172,3.86186174,87.499,87.445,3.53935435]
[1772171982173,3.35126693,87.49,87.445,3.53935435]
[1772171982373,3.86186174,87.479,87.431,3.53935435]
[1772171983784,3.86186174,87.479,87.432,10.2934]
[1772171985084,3.86186174,87.479,87.44,3.35126693]
[1772171985786,3.86186174,87.479,87.44,13.64366693]
[1772171986182,3.86186174,87.479,87.44,10.2924]
[1772171986387,3.86186174,87.472,87.419,10.2948]
[1772171987089,3.86186174,87.472,87.42,3.35126693]
[1772171987484,3.86186174,87.468,87.422,10.2945]
[1772171988993,3.86186174,87.465,87.413,13.83485435]
[1772171989288,3.86186174,87.465,87.413,3.53935435]
[1772171989686,3.86186174,87.465,87.341,28.36515864]
[1772171989687,3.86186174,87.529,87.461,3.53935435]
[1772171989887,3.86186174,87.529,87.47,3.35126693]
[1772171990490,7.21312867,87.52,87.47,3.35126693]
[1772171990690,3.86186174,87.509,87.461,3.53935435]
[1772171991988,3.86186174,87.509,87.471,10.2887]
[1772171992893,3.86186174,87.509,87.48,10.2877]
[1772171993388,3.86186174,87.524,87.461,3.53935435]
[1772171993691,3.86186174,87.519,87.471,3.53935435]
[1772171994991,3.86186174,87.519,87.479,10.2878]
[1772171995398,3.86186174,87.509,87.419,3.53935435]
[1772171995593,3.86186174,87.509,87.451,3.53935435]
[1772171996994,3.86186174,87.509,87.464,13.82885435]
[1772171997990,3.86186174,87.509,87.414,20.591]
[1772171997991,3.86186174,87.509,87.465,3.53935435]
[1772171998992,3.86186174,87.509,87.478,10.2879]
[1772171999498,3.34316528,87.52,87.478,10.2879]
[1772172001790,3.86186174,87.528,87.482,10.2874]
[1772172002195,3.86186174,87.528,87.483,3.53935435]
[1772172002992,3.34316528,87.52,87.483,3.53935435]
[1772172003196,7.20502702,87.52,87.483,3.53935435]
[1772172003393,3.86186174,87.499,87.455,3.53935435]
[1772172004598,3.34316528,87.51,87.455,3.53935435]
[1772172004896,3.34316528,87.51,87.466,10.2892]
[1772172005503,7.20502702,87.51,87.466,10.2892]
[1772172006002,7.20502702,87.51,87.469,3.53935435]
[1772172006202,3.34316528,87.51,87.469,3.53935435]
[1772172006699,3.86186174,87.509,87.47,10.2888]
[1772172007299,3.86186174,87.509,87.47,13.82815435]
[1772172008103,3.86186174,87.509,87.474,10.2884]
[1772172008506,3.86186174,87.526,87.475,3.53935435]
[1772172008813,3.86186174,87.526,87.47,3.34316528]
[1772172008814,3.34316528,87.52,87.477,3.53935435]
[1772172009097,3.86186174,87.526,87.477,3.53935435]
[1772172009696,8.42919985,87.571,87.483,3.53935435]
[1772172009697,10.281,87.537,87.483,3.53935435]
[1772172009893,13.92909387,87.537,87.483,3.53935435]
[1772172010600,3.64809387,87.537,87.49,10.2865]
[1772172010803,3.64809387,87.537,87.491,3.62287557]
[1772172011904,3.64809387,87.537,87.493,10.2861]
[1772172012904,3.34316528,87.53,87.493,10.2861]
[1772172013507,3.64809387,87.529,87.493,10.2861]
[1772172032107,3.64809387,87.519,87.473,3.62287557]
[1772172034106,3.64809387,87.519,87.477,13.91087557]
[1772172034410,3.64809387,87.519,87.478,3.62287557]
[1772172035914,3.64809387,87.519,87.48,10.2876]
[1772172036513,3.34316528,87.51,87.48,10.2876]
[1772172040215,3.64809387,87.519,87.48,10.2876]
[1772172042215,3.34316528,87.53,87.483,3.65510525]
[1772172042811,3.57342212,87.531,87.487,3.65510525]
[1772172043012,3.34316528,87.55,87.491,3.65510525]
[1772172043208,3.57342212,87.548,87.491,3.65510525]
[1772172043408,3.34316528,87.54,87.491,3.65510525]
[1772172045018,3.57342212,87.548,87.504,3.65510525]
[1772172048222,8.51373686,87.547,87.504,3.65510525]
[1772172048418,3.57342212,87.548,87.504,3.65510525]
[1772172048613,3.57342212,87.539,87.491,3.65510525]
[1772172048809,3.34316528,87.52,87.491,3.65510525]
[1772172049014,3.57342212,87.529,87.491,3.65510525]
[1772172058831,3.34186874,87.51,87.479,3.65510525]
[1772172064832,3.57342212,87.519,87.479,3.65510525]
[1772172065028,3.34186874,87.51,87.479,3.65510525]
[1772172073936,10.2833,87.518,87.479,3.65510525]
[1772172074134,3.84070179,87.517,87.479,3.65510525]
[1772172079747,3.84070179,87.517,87.462,3.5886927]
[1772172079948,3.84070179,87.509,87.462,3.5886927]
[1772172080144,3.84070179,87.479,87.44,21.36349132]
[1772172080349,3.84070179,87.491,87.441,3.5886927]
[1772172080542,3.34186874,87.49,87.441,3.5886927]
[1772172080750,3.34186874,87.48,87.441,3.5886927]
[1772172083153,3.84070179,87.489,87.441,3.5886927]
[1772172085654,3.34186874,87.48,87.441,3.5886927]
[1772172086149,3.84070179,87.489,87.441,3.5886927]
[1772172087645,3.34186874,87.48,87.441,3.5886927]
[1772172090057,3.84070179,87.489,87.441,3.5886927]
[1772172090560,3.34186874,87.48,87.441,3.5886927]
[1772172091963,3.84070179,87.489,87.441,3.5886927]
[1772172092962,3.84070179,87.489,87.443,3.5886927]
[1772172093662,3.84070179,87.489,87.448,3.5886927]
[1772172099564,3.84070179,87.489,87.45,3.5886927]
[1772172100857,3.84070179,87.489,87.443,10.292]
[1772172101564,3.84070179,87.489,87.443,14.07773381]
[1772172101965,3.84070179,87.489,87.444,3.78573381]
[1772172109975,3.84070179,87.489,87.447,3.86848954]
[1772172110870,3.84070179,87.489,87.453,10.2909]
[1772172120887,3.70970609,87.516,87.461,3.86848954]
[1772172121183,3.70970609,87.514,87.461,3.86848954]
[1772172121376,3.70970609,87.514,87.477,3.86848954]
[1772172121574,3.70970609,87.524,87.477,3.86848954]
[1772172121875,3.70970609,87.522,87.48,3.34483581]
[1772172122076,3.70970609,87.522,87.483,3.86848954]
[1772172122275,3.70970609,87.539,87.483,3.86848954]
[1772172122475,3.70970609,87.539,87.447,20.5831]
[1772172122476,3.70970609,87.537,87.491,3.86848954]
[1772172122675,8.7793192,87.538,87.491,3.86848954]
[1772172122676,3.70970609,87.535,87.491,3.86848954]
[1772172122969,8.7793192,87.534,87.491,3.86848954]
[1772172123174,3.70970609,87.535,87.491,3.86848954]
[1772172123879,3.70970609,87.535,87.493,10.2861]
[1772172124178,3.70970609,87.535,87.493,14.15458954]
[1772172124378,3.70970609,87.535,87.494,3.86848954]
[1772172126882,10.2796,87.549,87.48,3.34483581]
[1772172126883,3.70970609,87.529,87.484,10.2872]
[1772172127181,3.70970609,87.529,87.485,3.86848954]
[1772172127883,3.70970609,87.529,87.487,3.86848954]
[1772172128783,3.70970609,87.529,87.497,10.2857]
[1772172131682,3.70970609,87.529,87.5,10.2853]
[1772172131886,3.80775753,87.54,87.5,13.79148177]
[1772172132189,3.80775753,87.539,87.501,3.50618177]
[1772172132488,3.80775753,87.539,87.505,3.50618177]
[1772172135786,3.80775753,87.539,87.506,10.2845]
[1772172136882,7.15259334,87.55,87.509,3.50618177]
[1772172137083,3.80775753,87.55,87.509,3.50618177]
[1772172137282,7.15259334,87.55,87.509,3.50618177]
[1772172137480,3.80775753,87.549,87.509,3.50618177]
[1772172137890,3.80775753,87.549,87.512,10.2839]
[1772172138784,3.80775753,87.549,87.516,3.50618177]
[1772172138979,3.80775753,87.561,87.516,3.50618177]
[1772172139181,3.34483581,87.57,87.521,3.50618177]
[1772172139381,3.80775753,87.572,87.469,160.0508]
[1772172139382,3.80775753,87.572,87.531,3.50618177]
[1772172139981,3.80775753,87.572,87.532,13.78778177]
[1772172140184,3.80775753,87.572,87.52,3.34483581]
[1772172140185,3.80775753,87.572,87.533,3.50618177]
[1772172141785,3.80775753,87.583,87.542,3.50618177]
[1772172142387,3.80775753,87.579,87.542,3.50618177]